bitfinex-derivatives/quotes_BNBF0:USTF0_20250907
["timestamp","ask_amount","ask_price","bid_price","bid_amount"]
[1757232936064,2.56126054,871.46,867.9,0.19981683]
[1757232937162,2.56126054,871.45,867.9,0.19981683]
[1757232937666,2.56126054,871.44,867.9,0.19981683]
[1757232938662,2.56126054,871.43,867.9,0.19981683]
[1757232939665,2.56126054,869.78,867.9,0.19981683]
[1757232940165,2.56126054,869.81,867.9,0.19981683]
[1757232940768,2.56126054,869.97,867.9,0.19981683]
[1757232941268,2.56126054,869.95,867.9,0.19981683]
[1757232941667,2.56126054,869.98,867.9,0.19981683]
[1757232942663,2.56126054,869.94,867.9,0.19981683]
[1757232943869,2.56126054,869.91,867.9,0.19981683]
[1757232944265,2.56126054,869.87,867.9,0.19981683]
[1757232944969,2.56126054,870.42,867.9,0.19981683]
[1757232945366,2.56126054,870.36,867.9,0.19981683]
[1757232946465,2.56126054,870.28,867.9,0.19981683]
[1757232946868,2.56126054,870.27,867.9,0.19981683]
[1757232947466,2.56126054,870.22,867.9,0.19981683]
[1757232948472,2.56126054,870.17,867.9,0.19981683]
[1757232949669,2.56126054,870.12,867.9,0.19981683]
[1757232950073,2.56126054,870.11,867.9,0.19981683]
[1757232950771,2.56126054,870.03,867.9,0.19981683]
[1757232951572,2.56126054,869.97,867.9,0.19981683]
[1757232952775,2.56126054,869.96,867.9,0.19981683]
[1757232953174,2.56126054,870.0,867.9,0.19981683]
[1757232953773,2.56126054,869.99,867.9,0.19981683]
[1757232954877,2.56126054,869.57,867.9,0.19981683]
[1757232955873,2.56126054,869.54,867.9,0.19981683]
[1757232956277,2.56126054,869.53,867.9,0.19981683]
[1757232956777,2.56126054,869.51,867.9,0.19981683]
[1757232957274,3.62131877,869.95,867.9,0.19981683]
[1757232957579,2.56126054,869.96,867.9,0.19981683]
[1757232958074,2.56126054,869.82,867.9,0.19981683]
[1757232958375,2.56126054,869.81,867.9,0.19981683]
[1757232959473,2.56126054,869.8,867.9,0.19981683]
[1757232960478,2.56126054,869.95,867.9,0.19981683]
[1757232960978,2.56126054,869.96,867.9,0.19981683]
[1757232961475,2.56126054,869.91,867.9,0.19981683]
[1757232962579,2.56126054,869.89,867.9,0.19981683]
[1757232963679,2.56126054,869.88,867.9,0.19981683]
[1757232964182,2.56126054,869.87,867.9,0.19981683]
[1757232964579,2.56126054,869.86,867.9,0.19981683]
[1757232965078,2.56126054,869.85,867.9,0.19981683]
[1757232965682,2.56126054,869.83,867.9,0.19981683]
[1757232967283,2.56126054,869.57,867.9,0.19981683]
[1757232967680,2.56126054,869.56,867.9,0.19981683]
[1757232968881,2.56126054,869.55,867.9,0.19981683]
[1757232969981,2.56126054,869.33,867.9,0.19981683]
[1757232970382,2.56126054,869.21,867.9,0.19981683]
[1757232970880,2.56126054,869.18,867.9,0.19981683]
[1757232971481,3.62131877,869.53,867.9,0.19981683]
[1757232971482,2.56126054,869.17,867.9,0.19981683]
[1757232971983,2.56126054,869.32,867.9,0.19981683]
[1757232973389,2.56126054,869.3,867.9,0.19981683]
[1757232973989,3.62131877,869.69,867.91,0.70098656]
[1757232974189,2.56126054,870.11,867.92,0.70098656]
[1757232974389,2.56126054,870.11,867.93,0.70098656]
[1757232974689,2.56126054,870.12,867.9,0.19981683]
[1757232974891,2.56126054,870.12,867.91,0.70080242]
[1757232975190,0.19989431,870.62,867.92,0.70080242]
[1757232975191,2.56126054,869.57,867.92,0.70080242]
[1757232975390,2.56126054,869.57,867.93,0.70080242]
[1757232975589,2.56126054,869.6,867.94,0.70080242]
[1757232975787,2.56126054,869.6,867.95,0.70080242]
[1757232975992,2.56126054,869.6,867.96,0.70080242]
[1757232976292,2.56126054,869.6,867.9,0.19981683]
[1757232976489,2.56126054,869.6,867.91,0.70055917]
[1757232976792,2.56126054,869.61,867.92,0.70055917]
[1757232976990,2.56126054,869.61,867.93,0.70055917]
[1757232977194,2.56126054,869.61,867.94,0.70055917]
[1757232977489,2.56126054,869.61,867.95,0.70055917]
[1757232977696,2.56126054,869.59,867.9,0.19981683]
[1757232977891,2.56126054,869.59,867.91,0.700456]
[1757232978092,2.56126054,869.6,867.92,0.700456]
[1757232978295,2.56126054,869.6,867.93,0.700456]
[1757232978495,2.56126054,869.6,867.94,0.700456]
[1757232978694,2.56126054,869.6,867.9,0.19981683]
[1757232978695,2.56126054,869.59,867.9,0.19981683]
[1757232978896,2.56126054,869.59,867.91,0.70036132]
[1757232979096,2.56126054,869.59,867.92,0.70036132]
[1757232979296,2.56126054,869.6,867.93,0.70036132]
[1757232979496,2.56126054,869.6,867.94,0.70036132]
[1757232979797,2.56126054,869.83,867.95,0.70036132]
[1757232979994,2.56126054,869.83,867.96,0.70036132]
[1757232980196,2.56126054,869.84,867.9,0.19981683]
[1757232980393,2.56126054,869.84,867.91,0.70019195]
[1757232980596,2.56126054,869.84,867.92,0.70019195]
[1757232980796,2.56126054,869.84,867.93,0.70019195]
[1757232980994,2.56126054,869.84,867.94,0.70019195]
[1757232981198,2.56126054,869.84,867.95,0.70019195]
[1757232981397,2.56126054,869.84,867.96,0.70010938]
[1757232981699,2.56126054,869.96,867.97,0.70008127]
[1757232981996,2.56126054,869.96,867.9,0.19981683]
[1757232982295,2.56126054,869.96,867.91,0.70008977]
[1757232982496,2.56126054,869.96,867.92,0.70008977]
[1757232982798,2.56126054,869.96,867.93,0.70008977]
[1757232982998,2.56126054,869.96,867.94,0.70008977]
[1757232983195,2.56126054,869.96,867.95,0.70008977]
[1757232983399,2.56126054,869.97,867.96,0.70008977]
[1757232983599,2.56126054,869.97,867.97,0.70008977]
[1757232983800,2.56126054,869.97,867.9,0.19981683]
[1757232983996,2.56126054,870.05,867.91,0.69990091]
[1757232984196,2.56126054,870.05,867.92,0.69990091]
[1757232984398,2.56126054,870.05,867.93,0.69990091]
[1757232984597,2.56126054,870.05,867.94,0.69990091]
[1757232984801,2.56126054,870.05,867.95,0.69990091]
[1757232985100,2.56126054,870.02,867.9,0.19981683]
[1757232985300,2.56126054,870.02,867.91,0.69984186]
[1757232985497,2.56126054,869.98,867.92,0.69984186]
[1757232985797,2.56126054,869.98,867.93,0.69984186]
[1757232986000,2.56126054,869.99,867.94,0.69984186]
[1757232986201,2.56126054,869.99,867.9,0.19981683]
[1757232986494,2.56126054,869.99,867.91,0.69974882]
[1757232986701,2.56126054,869.99,867.92,0.69974882]
[1757232986896,2.56126054,869.99,867.93,0.69974882]
[1757232987197,2.56126054,869.99,867.9,0.19981683]
[1757232987401,2.56126054,869.99,867.91,0.69969358]
[1757232987600,2.56126054,870.08,867.92,0.69969358]
[1757232987799,2.56126054,870.08,867.93,0.69969358]
[1757232988001,2.56126054,870.08,867.94,0.69969358]
[1757232988201,2.56126054,870.08,867.9,0.19981683]
[1757232988403,2.56126054,870.08,867.91,0.69966371]
[1757232988598,2.56126054,870.08,867.92,0.69966371]
[1757232988802,2.56126054,870.08,867.93,0.69966371]
[1757232988999,2.56126054,870.08,867.9,0.19981683]
[1757232989203,2.56126054,870.08,867.91,0.69966421]
[1757232989404,2.56126054,870.08,867.92,0.69966421]
[1757232989603,2.56126054,869.98,867.9,0.19981683]
[1757232989899,2.56126054,869.98,867.91,0.69962071]
[1757232990104,2.56126054,869.98,867.92,0.69960401]
[1757232990400,2.56126054,869.98,867.93,0.69954741]
[1757232990700,2.56126054,869.99,867.9,0.19981683]
[1757232991004,2.56126054,869.99,867.91,0.69954244]
[1757232991304,2.56126054,869.99,867.92,0.69954244]
[1757232991604,2.56126054,869.99,867.93,0.69950319]
[1757232991903,2.56126054,869.99,867.9,0.19981683]
[1757232991904,2.56126054,870.01,867.9,0.19981683]
[1757232992103,2.56126054,870.01,867.91,0.69950319]
[1757232992300,2.56126054,870.13,867.92,0.69950319]
[1757232992500,2.56126054,870.13,867.93,0.69950319]
[1757232992705,2.56126054,870.19,867.94,0.69950319]
[1757232992905,2.56126054,870.19,867.95,0.69950319]
[1757232993105,2.56126054,870.19,867.9,0.19981683]
[1757232993305,2.56126054,870.15,867.91,0.69942965]
[1757232993503,2.56126054,870.15,867.92,0.69942965]
[1757232993708,2.56126054,870.15,867.93,0.69942965]
[1757232993906,2.56126054,870.21,867.94,0.69942965]
[1757232994202,2.56126054,870.21,867.95,0.69942965]
[1757232994407,2.56126054,869.94,867.96,0.69942965]
[1757232994608,2.56126054,869.94,867.97,0.69942965]
[1757232994809,2.56126054,869.87,867.98,0.69942965]
[1757232995103,2.56126054,869.87,867.9,0.19981683]
[1757232995309,2.56126054,869.87,867.91,0.69970396]
[1757232995502,2.56126054,869.87,867.92,0.69970396]
[1757232995804,2.56126054,869.87,867.93,0.69970396]
[1757232996107,2.56126054,869.87,867.94,0.69970396]
[1757232996306,2.56126054,869.86,867.95,0.69970396]
[1757232996503,2.56126054,869.86,867.96,0.69970396]
[1757232996704,2.56126054,869.86,867.97,0.69970396]
[1757232996906,2.56126054,869.86,867.9,0.19981683]
[1757232997106,2.56126054,869.86,867.91,0.69968872]
[1757232997304,2.56126054,869.86,867.92,0.69968872]
[1757232997507,2.56126054,869.86,867.93,0.69968872]
[1757232997705,2.56126054,869.86,867.94,0.69968872]
[1757232998005,2.56126054,869.86,867.95,0.69968872]
[1757232998206,2.56126054,869.86,867.96,0.69968872]
[1757232998405,2.56126054,869.86,867.9,0.19981683]
[1757232998609,2.56126054,869.86,867.91,0.69964652]
[1757232998809,2.56126054,869.86,867.92,0.69964652]
[1757232999010,2.56126054,869.86,867.93,0.69964652]
[1757232999310,2.56126054,869.86,867.94,0.69964652]
[1757232999509,2.56126054,869.83,867.95,0.69964652]
[1757232999818,2.56126054,869.83,867.96,0.69964652]
[1757233000007,2.56126054,869.83,867.97,0.69964652]
[1757233000212,2.56126054,869.83,867.9,0.19981683]
[1757233000409,2.56126054,869.83,867.91,0.69955893]
[1757233000710,2.56126054,869.84,867.92,0.69955893]
[1757233000910,2.56126054,869.84,867.93,0.69955893]
[1757233001108,2.56126054,869.61,867.94,0.69955893]
[1757233001310,2.56126054,869.61,867.9,0.19981683]
[1757233001512,2.56126054,869.53,867.91,0.69952458]
[1757233001711,2.56126054,869.53,867.92,0.69952458]
[1757233001909,2.56126054,869.53,867.93,0.69952458]
[1757233002109,2.56126054,869.59,867.9,0.19981683]
[1757233002412,2.56126054,869.59,867.91,0.69948328]
[1757233002612,2.56126054,869.6,867.92,0.69948328]
[1757233002909,2.56126054,869.6,867.93,0.69948328]
[1757233003113,2.56126054,869.83,867.94,0.69948328]
[1757233003309,2.56126054,869.83,867.95,0.69948328]
[1757233003509,2.56126054,869.83,867.96,0.69948328]
[1757233003708,2.56126054,869.83,867.9,0.19981683]
[1757233003910,2.56126054,869.83,867.91,0.69940474]
[1757233004108,2.56126054,869.83,867.92,0.69940474]
[1757233004311,2.56126054,869.82,867.93,0.69940474]
[1757233004513,2.56126054,869.82,867.94,0.69940474]
[1757233004714,2.56126054,869.82,867.95,0.69940474]
[1757233004919,2.56126054,869.82,867.9,0.19981683]
[1757233005120,2.56126054,869.82,867.91,0.69937975]
[1757233005317,2.56126054,869.81,867.92,0.69937975]
[1757233005619,2.56126054,869.81,867.93,0.69937975]
[1757233005916,2.56126054,869.82,867.94,0.69937975]
[1757233006120,2.56126054,869.82,867.9,0.19981683]
[1757233006319,2.56126054,869.82,867.91,0.69933363]
[1757233006517,2.56126054,869.82,867.92,0.69933363]
[1757233006819,2.56126054,869.82,867.93,0.69933363]
[1757233007019,2.56126054,869.82,867.94,0.69933363]
[1757233007217,2.56126054,869.82,867.9,0.19981683]
[1757233007519,2.56126054,869.82,867.91,0.69932481]
[1757233007716,2.56126054,869.82,867.92,0.69932481]
[1757233007916,2.56126054,869.97,867.93,0.69932481]
[1757233008119,2.56126054,869.97,867.94,0.69932481]
[1757233008317,2.56126054,869.97,867.95,0.69932481]
[1757233008518,2.56126054,869.97,867.96,0.69932481]
[1757233008718,2.56126054,869.97,867.9,0.19981683]
[1757233008921,2.56126054,870.04,867.91,0.69931309]
[1757233009218,2.56126054,870.04,867.92,0.69931309]
[1757233009417,2.56126054,870.04,867.93,0.69931309]
[1757233009619,2.56126054,870.04,867.94,0.69931309]
[1757233009820,2.56126054,870.04,867.95,0.69931309]
[1757233010021,2.56126054,870.04,867.96,0.69931309]
[1757233010222,2.56126054,870.04,867.9,0.19981683]
[1757233010421,2.56126054,870.04,867.91,0.69931946]
[1757233010620,2.56126054,870.04,867.9,0.19981683]
[1757233010621,2.56126054,870.04,867.92,0.69931946]
[1757233010825,2.56126054,870.04,867.93,0.69931946]
[1757233011020,2.56126054,870.02,867.94,0.69931946]
[1757233011220,2.56126054,870.02,867.95,0.69931946]
[1757233011420,2.56126054,870.0,867.9,0.19981683]
[1757233011721,2.56126054,870.0,867.91,0.69908995]
[1757233012024,2.56126054,869.99,867.92,0.69908995]
[1757233012221,2.56126054,869.99,867.93,0.69908995]
[1757233012521,2.56126054,869.97,867.94,0.69908995]
[1757233012725,2.56126054,869.97,867.95,0.69908995]
[1757233012924,2.56126054,869.97,867.9,0.19981683]
[1757233013121,2.56126054,869.97,867.91,0.69910771]
[1757233013421,2.56126054,869.97,867.92,0.69910771]
[1757233013720,2.56126054,869.97,867.93,0.69910771]
[1757233013920,2.56126054,869.97,867.94,0.69910771]
[1757233014121,2.56126054,869.99,867.95,0.69910771]
[1757233014322,2.56126054,869.99,867.9,0.19981683]
[1757233014526,2.56126054,869.99,867.91,0.69915312]
[1757233014724,2.56126054,869.99,867.92,0.69915312]
[1757233014924,2.56126054,869.99,867.93,0.69915312]
[1757233015125,2.56126054,869.99,867.94,0.69915312]
[1757233015428,2.56126054,869.99,867.95,0.69915312]
[1757233015626,2.56126054,869.99,867.96,0.69915312]
[1757233015926,2.56126054,869.99,867.9,0.19981683]
[1757233016130,2.56126054,870.08,867.91,0.69918502]
[1757233016329,2.56126054,870.08,867.92,0.69918502]
[1757233016629,2.56126054,870.07,867.93,0.69918502]
[1757233016825,2.56126054,870.07,867.94,0.69918502]
[1757233017130,2.56126054,870.07,867.95,0.69918502]
[1757233017328,2.56126054,870.07,867.96,0.69918502]
[1757233017529,2.56126054,870.07,867.97,0.69918502]
[1757233017829,2.56126054,870.0,867.9,0.19981683]
[1757233018029,2.56126054,870.0,867.91,0.69903533]
[1757233018229,2.56126054,870.0,867.92,0.69903533]
[1757233018428,2.56126054,870.0,867.93,0.69903533]
[1757233018626,2.56126054,870.0,867.94,0.69903533]
[1757233018825,2.56126054,869.95,867.95,0.69903533]
[1757233019026,2.56126054,869.95,867.96,0.69903533]
[1757233019231,2.56126054,869.95,867.97,0.69903533]
[1757233019528,2.56126054,869.95,867.9,0.19981683]
[1757233019728,2.56126054,869.95,867.91,0.69919288]
[1757233019929,2.56126054,869.95,867.92,0.69919288]
[1757233020126,2.56126054,869.95,867.93,0.69919288]
[1757233020330,2.56126054,869.95,867.94,0.69919288]
[1757233020529,2.56126054,869.95,867.95,0.69919288]
[1757233020728,2.56126054,869.95,867.96,0.69919288]
[1757233020933,2.56126054,869.95,867.97,0.69919288]
[1757233021134,2.56126054,869.95,867.9,0.19981683]
[1757233021334,2.56126054,869.98,867.91,0.69919113]
[1757233021535,2.56126054,869.98,867.92,0.69919113]
[1757233021730,2.56126054,869.98,867.93,0.69919113]
[1757233021934,2.56126054,870.01,867.94,0.69919113]
[1757233022134,2.56126054,870.01,867.95,0.69919113]
[1757233022336,2.56126054,870.01,867.96,0.69919113]
[1757233022536,2.56126054,869.95,867.97,0.69919113]
[1757233022736,2.56126054,869.95,867.98,0.69919113]
[1757233023036,2.56126054,869.96,867.9,0.19981683]
[1757233023237,2.56126054,869.96,867.91,0.69932446]
[1757233023432,2.56126054,869.95,867.92,0.69932446]
[1757233023733,2.56126054,869.95,867.93,0.69932446]
[1757233023934,2.56126054,869.93,867.94,0.69932446]
[1757233024137,2.56126054,869.93,867.95,0.69932446]
[1757233024337,2.56126054,869.93,867.96,0.69932446]
[1757233024534,2.56126054,869.93,867.97,0.69932446]
[1757233024734,2.56126054,869.93,867.98,0.69932446]
[1757233024932,2.56126054,869.93,867.9,0.19981683]
[1757233025134,2.56126054,869.93,867.91,0.69994276]
[1757233025338,2.56126054,869.93,867.92,0.69994276]
[1757233025634,2.56126054,869.93,867.93,0.69994276]
[1757233025934,2.56126054,869.93,867.9,0.19981683]
[1757233025935,2.56126054,869.93,867.94,0.69994276]
[1757233026138,2.56126054,869.89,867.95,0.69994276]
[1757233026434,2.56126054,869.89,867.96,0.69994276]
[1757233026738,2.56126054,869.87,867.97,0.69994276]
[1757233027037,2.56126054,869.87,867.98,0.69994276]
[1757233027234,2.56126054,869.87,867.99,0.69994276]
[1757233027435,2.56126054,869.87,868.0,0.69994276]
[1757233027639,2.56126054,869.85,867.9,0.19981683]
[1757233027836,2.56126054,869.85,867.91,0.70022829]
[1757233028036,2.56126054,869.85,867.92,0.70022829]
[1757233028238,2.56126054,869.84,867.93,0.70022829]
[1757233028437,2.56126054,869.84,867.94,0.70022829]
[1757233028639,2.56126054,869.8,867.95,0.70022829]
[1757233028837,2.56126054,869.8,867.96,0.70022829]
[1757233029140,2.56126054,869.8,867.9,0.19981683]
[1757233029141,2.56126054,869.79,867.97,0.70022829]
[1757233029341,2.56126054,869.79,867.98,0.70022829]
[1757233029540,2.56126054,869.79,867.99,0.70022829]
[1757233029740,2.56126054,869.79,868.0,0.70022829]
[1757233029941,2.56126054,869.79,867.9,0.19981683]
[1757233030142,2.56126054,869.72,867.91,0.70047047]
[1757233030337,2.56126054,869.72,867.92,0.70047047]
[1757233030541,2.56126054,869.72,867.93,0.70047047]
[1757233030838,2.56126054,869.72,867.94,0.70047047]
[1757233031141,2.56126054,869.69,867.95,0.70047047]
[1757233031442,2.56126054,869.69,867.96,0.70047047]
[1757233031641,2.56126054,869.69,867.97,0.70047047]
[1757233031842,2.56126054,869.59,867.98,0.70047047]
[1757233032042,2.56126054,869.59,867.99,0.70047047]
[1757233032342,2.56126054,869.57,868.0,0.70047047]
[1757233032538,2.56126054,869.57,867.9,0.19981683]
[1757233032742,2.56126054,869.57,867.91,0.70111872]
[1757233032941,2.56126054,869.57,867.9,0.19981683]
[1757233032942,2.56126054,869.57,867.92,0.70111872]
[1757233033139,2.56126054,869.57,867.93,0.70111872]
[1757233033339,2.56126054,869.56,867.94,0.70111872]
[1757233033540,2.56126054,869.56,867.95,0.70111872]
[1757233033841,2.56126054,869.55,867.96,0.70111872]
[1757233034045,2.56126054,869.55,867.97,0.70111872]
[1757233034246,2.56126054,869.54,867.98,0.70111872]
[1757233034449,2.56126054,869.54,867.99,0.70111872]
[1757233034643,2.56126054,869.54,868.0,0.70111872]
[1757233034846,2.56126054,869.54,868.01,0.70111872]
[1757233035044,2.56126054,869.54,868.02,0.70111872]
[1757233035247,2.56126054,869.54,868.03,0.70111872]
[1757233035547,2.56126054,869.55,867.9,0.19981683]
[1757233035745,2.56126054,869.55,867.91,0.70158492]
[1757233035944,2.56126054,869.38,867.92,0.70158492]
[1757233036146,2.56126054,869.38,867.93,0.70158492]
[1757233036345,2.56126054,869.33,867.94,0.70158492]
[1757233036545,2.56126054,869.33,867.95,0.70158492]
[1757233036745,1.12688652,869.33,867.96,0.70158492]
[1757233036950,3.62131877,869.66,867.97,0.70158492]
[1757233037150,3.62131877,869.66,867.98,0.70158492]
[1757233037347,3.62131877,869.66,867.99,0.70158492]
[1757233037653,3.62131877,869.6,868.0,0.70158492]
[1757233037851,3.62131877,869.6,868.01,0.70158492]
[1757233038150,3.62131877,869.6,868.02,0.70158492]
[1757233038352,3.62131877,869.6,868.03,0.70158492]
[1757233038552,3.62131877,869.64,868.04,0.70158492]
[1757233038850,3.62131877,869.64,867.9,0.19981683]
[1757233039052,3.62131877,869.64,867.91,0.71705851]
[1757233039252,3.62131877,869.64,867.92,0.71705851]
[1757233039553,3.62131877,869.64,867.93,0.71705851]
[1757233039751,3.62131877,869.65,867.94,0.71705851]
[1757233039949,3.62131877,869.65,867.95,0.71705851]
[1757233040149,3.62131877,869.65,867.96,0.71705851]
[1757233040348,3.62131877,869.65,867.97,0.71705851]
[1757233040546,3.62131877,869.65,867.98,0.71705851]
[1757233040751,3.62131877,869.53,867.99,0.71705851]
[1757233041048,3.62131877,869.53,868.0,0.71705851]
[1757233041253,3.62131877,869.53,868.01,0.71705851]
[1757233041453,3.62131877,869.53,868.02,0.71705851]
[1757233041653,3.62131877,869.48,868.03,0.71705851]
[1757233041950,3.62131877,869.48,868.04,0.71705851]
[1757233042149,3.62131877,869.48,867.9,0.19981683]
[1757233042354,3.62131877,869.48,867.91,0.71713116]
[1757233042649,3.62131877,869.48,867.92,0.71713116]
[1757233042853,3.62131877,869.48,867.93,0.71713116]
[1757233043050,3.62131877,869.48,867.94,0.71713116]
[1757233043249,3.62131877,869.48,867.95,0.71713116]
[1757233043447,3.62131877,869.48,867.96,0.71713116]
[1757233043652,3.62131877,869.48,867.97,0.71713116]
[1757233043853,3.62131877,869.51,867.98,0.71713116]
[1757233044050,3.62131877,869.51,867.99,0.71713116]
[1757233044349,3.62131877,869.51,868.0,0.71713116]
[1757233044554,3.62131877,869.51,868.01,0.71713116]
[1757233044850,3.62131877,869.61,868.02,0.71713116]
[1757233045049,3.62131877,869.61,868.03,0.71713116]
[1757233045250,3.62131877,869.61,868.04,0.71713116]
[1757233045452,3.62131877,869.61,868.05,0.71713116]
[1757233045651,3.62131877,869.61,867.9,0.19981683]
[1757233045652,3.62131877,869.61,868.06,0.71713116]
[1757233045849,2.57941678,869.29,867.9,0.19981683]
[1757233046053,1.14504246,869.29,867.91,0.71718252]
[1757233046250,3.62131877,869.6,867.92,0.71718252]
[1757233046454,3.62131877,869.6,867.93,0.71718252]
[1757233046653,3.62131877,869.6,867.94,0.71718252]
[1757233046949,3.62131877,869.59,867.95,0.71718252]
[1757233047154,3.62131877,869.59,867.96,0.71718252]
[1757233047352,3.62131877,869.59,867.97,0.71718252]
[1757233047551,3.62131877,869.59,867.98,0.71718252]
[1757233047753,3.62131877,869.59,867.99,0.71718252]
[1757233047954,3.62131877,869.62,868.0,0.71718252]
[1757233048151,3.62131877,869.62,868.01,0.71718252]
[1757233048354,3.62131877,869.62,868.02,0.71718252]
[1757233048653,3.62131877,869.62,868.03,0.71718252]
[1757233048853,3.62131877,869.62,868.04,0.71718252]
[1757233049052,3.62131877,869.7,868.05,0.71718252]
[1757233049251,3.62131877,869.7,867.9,0.19981683]
[1757233049551,2.76070152,869.7,867.91,1.73248837]
[1757233049751,2.76070152,869.7,867.92,1.73248837]
[1757233049955,5.17691132,870.23,867.93,1.73248837]
[1757233050255,5.17691132,870.23,867.94,1.73248837]
[1757233050453,5.17691132,870.23,867.95,1.73248837]
[1757233050651,5.17691132,870.23,867.96,0.7098585]
[1757233050955,5.17691132,870.23,867.97,0.7098585]
[1757233051155,5.17691132,870.19,867.98,0.7098585]
[1757233051451,5.17691132,870.19,867.99,0.7098585]
[1757233051654,5.17691132,870.19,868.0,0.7098585]
[1757233051854,5.17691132,870.19,868.01,0.7098585]
[1757233052056,5.17691132,870.19,868.02,0.7098585]
[1757233052253,5.17691132,870.19,868.03,0.7098585]
[1757233052555,5.17691132,870.19,868.04,0.7098585]
[1757233052752,5.17691132,870.19,868.05,0.7098585]
[1757233052954,5.17691132,870.19,868.06,0.7098585]
[1757233053157,5.17691132,870.25,868.07,0.7098585]
[1757233053455,5.17691132,870.25,868.08,0.7098585]
[1757233053657,5.17691132,870.25,868.09,0.7098585]
[1757233053955,5.17691132,870.25,868.1,0.7098585]
[1757233054154,5.17691132,870.25,868.11,0.7098585]
[1757233054352,5.17691132,870.25,868.12,0.7098585]
[1757233054552,5.17691132,870.25,868.13,0.7098585]
[1757233054755,5.17691132,870.25,868.14,0.7098585]
[1757233054956,5.17691132,870.25,868.15,0.7098585]
[1757233055158,2.58018958,870.29,868.16,0.7098585]
[1757233055353,2.58018958,870.29,868.17,0.7098585]
[1757233055554,2.58018958,870.3,868.18,0.7098585]
[1757233055753,2.58018958,870.3,868.19,0.7098585]
[1757233055957,2.58018958,870.3,868.2,0.7098585]
[1757233056257,2.58018958,870.29,868.21,0.7098585]
[1757233056454,2.58018958,870.29,868.22,0.7098585]
[1757233056658,2.58018958,870.3,868.23,0.7098585]
[1757233056855,2.58018958,870.3,867.9,0.19981683]
[1757233057158,2.58018958,870.3,867.91,0.71894662]
[1757233057358,2.58018958,870.3,867.92,0.71894662]
[1757233057654,2.58018958,870.3,867.93,0.71894662]
[1757233057859,2.58018958,870.3,868.14,0.1998547]
[1757233058059,2.58018958,870.3,868.15,0.71894662]
[1757233058259,2.58018958,870.3,868.16,0.71894662]
[1757233058460,2.58018958,870.3,868.17,0.71894662]
[1757233058660,2.58018958,870.3,868.18,0.71894662]
[1757233058959,2.58018958,870.3,868.19,0.71894662]
[1757233059259,2.58018958,870.3,868.2,0.71894662]
[1757233059457,2.58018958,870.3,868.21,0.71894662]
[1757233059754,2.58018958,870.3,868.22,0.71894662]
[1757233059961,2.58018958,870.3,868.14,0.1998547]
[1757233060161,2.58018958,870.3,868.15,0.71886273]
[1757233060361,2.58018958,870.3,868.16,0.71886273]
[1757233060558,2.58018958,870.3,868.17,0.71886273]
[1757233060861,2.58018958,870.3,868.18,0.71886273]
[1757233061162,2.58018958,870.3,868.19,0.71886273]
[1757233061364,2.58018958,870.3,868.2,0.71886273]
[1757233061560,2.58018958,870.3,868.14,0.1998547]
[1757233061561,2.58018958,870.3,868.21,0.71886273]
[1757233061764,2.58018958,870.29,868.14,0.1998547]
[1757233062061,2.58018958,870.29,868.15,0.7188464]
[1757233062264,2.58018958,870.29,868.16,0.7188464]
[1757233062462,2.58018958,870.29,868.17,0.7188464]
[1757233062664,2.58018958,870.29,868.18,0.7188464]
[1757233062863,2.58018958,870.29,868.19,0.7188464]
[1757233063063,2.58018958,870.29,868.2,0.7188464]
[1757233063264,2.58018958,870.29,868.21,0.7188464]
[1757233063463,2.58018958,870.46,868.14,0.1998547]
[1757233063668,2.58018958,870.46,868.15,0.70675235]
[1757233063871,2.58018958,870.38,868.16,0.70675235]
[1757233064073,2.58018958,870.38,868.17,0.70675235]
[1757233064371,2.58018958,870.39,868.18,0.70675235]
[1757233064572,2.58018958,870.39,868.19,0.70675235]
[1757233064770,2.58018958,870.39,868.14,0.1998547]
[1757233065073,2.58018958,870.26,868.15,0.70674019]
[1757233065370,2.58018958,870.26,868.16,1.71082285]
[1757233065573,2.58018958,870.26,868.17,1.71082285]
[1757233065773,2.58018958,870.26,868.18,1.71082285]
[1757233065972,2.58018958,870.26,868.19,1.00408266]
[1757233066171,2.58018958,870.21,868.2,1.00408266]
[1757233066375,2.58018958,870.21,868.21,1.00408266]
[1757233066570,2.58018958,870.2,868.22,1.00408266]
[1757233066870,2.58018958,870.2,868.23,1.00408266]
[1757233067071,2.58018958,870.32,868.24,1.71058281]
[1757233067271,2.58018958,870.32,868.25,1.71058281]
[1757233067470,2.58018958,870.32,868.26,1.00408266]
[1757233067774,2.58018958,870.34,868.27,1.00408266]
[1757233067974,2.58018958,870.34,868.28,1.00408266]
[1757233068173,2.58018958,870.34,868.29,1.00408266]
[1757233068375,2.58018958,870.34,868.3,1.00408266]
[1757233068575,2.58018958,870.34,868.31,1.00408266]
[1757233068773,2.58018958,870.35,868.32,1.00408266]
[1757233068979,2.58018958,870.35,868.33,1.00408266]
[1757233069177,2.58018958,870.35,868.34,1.00408266]
[1757233069375,2.58018958,870.35,868.35,1.00408266]
[1757233069575,2.58018958,870.35,868.36,1.00408266]
[1757233069776,2.58018958,870.36,868.37,1.00408266]
[1757233069978,2.58018958,870.36,868.38,1.00408266]
[1757233070181,2.58018958,870.35,868.39,1.00408266]
[1757233070376,2.58018958,870.35,868.4,1.00408266]
[1757233070576,2.58018958,870.35,868.41,1.00408266]
[1757233070780,2.58018958,870.35,868.42,1.00408266]